bitfinex/quotes_BTCUSD_20240818
["timestamp","ask_amount","ask_price","bid_price","bid_amount"]
[1723968468220,0.000825,59628.0,59627.0,1.22133308]
[1723968468421,0.000825,59628.0,59627.0,1.61457294]
[1723968468739,0.000825,59628.0,59627.0,3.11457294]
[1723968468936,0.000825,59628.0,59627.0,3.16889175]
[1723968469168,0.000825,59628.0,59627.0,3.54096736]
[1723968469363,0.000825,59628.0,59627.0,3.54620679]
[1723968469600,0.000825,59628.0,59627.0,3.82353702]
[1723968469936,0.000825,59628.0,59627.0,4.34236172]
[1723968470418,0.000825,59628.0,59627.0,4.35636172]
[1723968470620,0.000825,59628.0,59627.0,4.36036172]
[1723968470792,0.000825,59628.0,59627.0,4.34236172]
[1723968471171,0.000825,59628.0,59627.0,4.52441765]
[1723968471375,0.000825,59628.0,59627.0,4.49446068]
[1723968471575,0.000825,59628.0,59627.0,3.94240304]
[1723968471776,0.000825,59628.0,59627.0,3.37621367]
[1723968471977,0.000825,59628.0,59627.0,3.25591789]
[1723968472197,0.000825,59628.0,59627.0,3.35596611]
[1723968472598,0.118219,59628.0,59627.0,0.58951525]
[1723968472803,0.118219,59628.0,59627.0,0.0530882]
[1723968472804,0.428608,59628.0,59627.0,0.0530882]
[1723968473011,0.428608,59628.0,59627.0,0.03221617]
[1723968473012,0.000825,59628.0,59627.0,0.03221617]
[1723968473239,0.353008,59628.0,59627.0,1.53195217]
[1723968473431,0.587797,59628.0,59627.0,1.51821617]
[1723968473841,0.587797,59628.0,59627.0,1.52421617]
[1723968474091,0.587797,59628.0,59627.0,1.52]
[1723968474290,0.587797,59628.0,59627.0,1.5]
[1723968474717,0.587797,59628.0,59627.0,1.503]
[1723968475361,0.822586,59628.0,59627.0,1.503]
[1723968477970,0.587797,59628.0,59627.0,1.503]
[1723968478778,0.000825,59628.0,59627.0,1.5856]
[1723968479100,0.118219,59628.0,59627.0,1.60647844]
[1723968479321,0.353008,59628.0,59627.0,1.52387844]
[1723968479768,0.118219,59628.0,59627.0,1.52387844]
[1723968480445,0.353008,59628.0,59627.0,1.52387844]
[1723968480785,0.353008,59628.0,59627.0,1.506]
[1723968481009,0.353008,59628.0,59627.0,1.503]
[1723968481359,0.353008,59628.0,59627.0,1.511]
[1723968481704,0.353008,59628.0,59627.0,1.53187799]
[1723968483090,0.118219,59628.0,59627.0,1.53187799]
[1723968483645,0.118179,59628.0,59627.0,1.53187799]
[1723968484017,0.352968,59628.0,59627.0,1.53187799]
[1723968484408,0.352968,59628.0,59627.0,1.531878]
[1723968485578,0.000785,59628.0,59627.0,1.531878]
[1723968485827,0.000785,59628.0,59627.0,1.649274]
[1723968486069,0.000785,59628.0,59627.0,1.614478]
[1723968486269,0.000785,59628.0,59627.0,1.64950347]
[1723968486645,0.000785,59628.0,59627.0,1.64650225]
[1723968486821,0.000785,59628.0,59627.0,1.7636346]
[1723968487205,0.000785,59628.0,59627.0,1.7676346]
[1723968487574,0.000785,59628.0,59627.0,1.7596346]
[1723968488011,0.000785,59628.0,59627.0,1.7676346]
[1723968488185,0.000785,59628.0,59627.0,1.7596346]
[1723968488341,0.000785,59628.0,59627.0,1.7556346]
[1723968488547,0.000785,59628.0,59627.0,1.7696346]
[1723968488747,0.000785,59628.0,59627.0,1.7806346]
[1723968489459,0.000785,59628.0,59627.0,2.0154266]
[1723968491997,0.000785,59628.0,59627.0,1.6632386]
[1723968493230,0.000785,59628.0,59627.0,1.7806346]
[1723968493384,0.000785,59628.0,59627.0,1.7803706]
[1723968494789,0.000785,59628.0,59627.0,2.0151626]
[1723968495814,0.000785,59628.0,59627.0,1.7803706]
[1723968498766,0.000785,59628.0,59627.0,1.6629746]
[1723968498930,0.000785,59628.0,59627.0,1.5803746]
[1723968499845,0.000785,59628.0,59627.0,1.581281]
[1723968500665,0.118179,59628.0,59627.0,1.581281]
[1723968501389,0.352968,59628.0,59627.0,1.581281]
[1723968502198,0.352968,59628.0,59627.0,1.58128345]
[1723968502405,0.587757,59628.0,59627.0,1.58128345]
[1723968502630,0.352968,59628.0,59627.0,1.58128345]
[1723968503488,0.352968,59628.0,59627.0,1.58101945]
[1723968505789,0.587757,59628.0,59627.0,1.58101945]
[1723968506026,0.665357,59628.0,59627.0,1.54599245]
[1723968506248,0.900146,59628.0,59627.0,1.54599245]
[1723968506495,0.900146,59628.0,59627.0,1.54599445]
[1723968507095,1.07170054,59628.0,59627.0,1.54599445]
[1723968507855,1.07170054,59628.0,59627.0,1.53199445]
[1723968508065,1.07170054,59628.0,59627.0,1.52099445]
[1723968508525,1.07270054,59628.0,59627.0,1.52099445]
[1723968509187,1.07270054,59628.0,59627.0,1.50011475]
[1723968509843,1.07270054,59628.0,59627.0,1.5209948]
[1723968510102,1.07270054,59628.0,59627.0,1.50011475]
[1723968512659,1.23650054,59628.0,59627.0,0.0009064]
[1723968521997,1.15890054,59628.0,59627.0,0.0009064]
[1723968524676,0.923546,59628.0,59627.0,0.0009064]
[1723968524850,0.688757,59628.0,59627.0,0.0009064]
[1723968526647,1.19209365,59628.0,59627.0,0.0009064]
[1723968526857,1.09510054,59628.0,59627.0,0.0009064]
[1723968533421,1.09510054,59628.0,59627.0,0.0006424]
[1723968534670,1.17190054,59628.0,59627.0,0.0006424]
[1723968537710,1.23430054,59628.0,59627.0,0.0006424]
[1723968540496,1.49908954,59628.0,59627.0,0.0006424]
[1723968541048,1.55266733,59628.0,59627.0,0.0006424]
[1723968541652,1.49908954,59628.0,59627.0,0.0006424]
[1723968546091,1.54920928,59628.0,59627.0,0.0006424]
[1723968547361,1.49908954,59628.0,59627.0,0.0006424]
[1723968547562,1.54920928,59628.0,59627.0,0.0006424]
[1723968549363,1.49908954,59628.0,59627.0,0.0006424]
[1723968550173,1.57429811,59628.0,59627.0,0.0006424]
[1723968550376,1.49908954,59628.0,59627.0,0.0006424]
[1723968551196,1.57429811,59628.0,59627.0,0.0006424]
[1723968554233,1.80908711,59628.0,59627.0,0.0006424]
[1723968554461,1.57529811,59628.0,59627.0,0.0006424]
[1723968554713,1.57433877,59628.0,59627.0,0.0006424]
[1723968555405,1.57434144,59628.0,59627.0,0.0006424]
[1723968556383,1.49908954,59628.0,59627.0,0.0006424]
[1723968561140,1.42228954,59628.0,59627.0,0.0006424]
[1723968561366,1.35988954,59628.0,59627.0,0.0006424]
[1723968563346,1.53144408,59628.0,59627.0,0.0006424]
[1723968563559,1.63177638,59628.0,59627.0,0.0006424]
[1723968563759,1.6317972,59628.0,59627.0,0.0006424]
[1723968564164,1.6327972,59628.0,59627.0,0.0006424]
[1723968564429,1.6317972,59628.0,59627.0,0.0006424]
[1723968565004,1.46024266,59628.0,59627.0,0.0006424]
[1723968570441,1.54024266,59628.0,59627.0,0.0006424]
[1723968573521,1.43988954,59628.0,59627.0,0.0003774]
[1723968576071,1.35988954,59628.0,59627.0,0.0003774]
[1723968577248,1.48533094,59628.0,59627.0,0.0003774]
[1723968579047,1.48533094,59628.0,59627.0,0.0824774]
[1723968579630,1.48533094,59628.0,59627.0,1.5824774]
[1723968582253,1.35988954,59628.0,59627.0,1.5824774]
[1723968583050,1.48541092,59628.0,59627.0,1.5824774]
[1723968583260,1.35988954,59628.0,59627.0,1.5824774]
[1723968586260,1.35988954,59628.0,59627.0,1.5003774]
[1723968587945,1.35988954,59628.0,59627.0,0.0003774]
[1723968590366,1.32988954,59628.0,59627.0,0.0003774]
[1723968591194,1.45549285,59628.0,59627.0,0.0003774]
[1723968591957,1.22070385,59628.0,59627.0,0.0003774]
[1723968592106,1.22070385,59628.0,59627.0,0.0836774]
[1723968592456,0.78923146,59628.0,59627.0,0.0836774]
[1723968592653,0.73899662,59628.0,59627.0,0.1439774]
[1723968592784,0.688757,59628.0,59627.0,0.1439774]
[1723968592989,0.86031154,59628.0,59627.0,0.1439774]
[1723968593343,1.09510054,59628.0,59627.0,0.1439774]
[1723968593599,1.09483777,59628.0,59627.0,0.1439774]
[1723968594396,1.09483777,59628.0,59627.0,0.0836774]
[1723968595566,1.09483777,59628.0,59627.0,1.5836774]
[1723968600353,1.09483777,59628.0,59627.0,0.0836774]
[1723968602139,1.09483777,59628.0,59627.0,1.5836774]
[1723968603358,1.09483777,59628.0,59627.0,1.5003774]
[1723968603736,1.09483777,59628.0,59627.0,1.5001154]
[1723968605574,1.32962677,59628.0,59627.0,1.5001154]
[1723968605781,1.39552677,59628.0,59627.0,0.0001154]
[1723968606163,1.44569777,59628.0,59627.0,0.0001154]
[1723968606737,1.21090877,59628.0,59627.0,0.0001154]
[1723968606912,1.44569777,59628.0,59627.0,0.0001154]
[1723968607115,1.23599428,59628.0,59627.0,0.0001154]
[1723968607324,1.26599428,59628.0,59627.0,0.0001154]
[1723968607473,1.42552677,59628.0,59627.0,0.0001154]
[1723968608193,1.52586878,59628.0,59627.0,0.0001154]
[1723968613671,0.82187,59620.0,59619.0,1.4998534]
[1723968613871,0.99342454,59620.0,59619.0,1.4998534]
[1723968614900,0.99342454,59620.0,59619.0,1.5148534]
[1723968616517,1.09342454,59620.0,59619.0,1.5148534]
[1723968617751,1.09342454,59620.0,59619.0,1.5157609]
[1723968621096,1.10360976,59620.0,59619.0,1.5157609]
[1723968630808,1.10443476,59620.0,59619.0,1.5157609]
[1723968632258,1.10443476,59620.0,59619.0,1.5972609]
[1723968639569,1.10443476,59620.0,59619.0,1.61814446]
[1723968639800,1.10443476,59620.0,59619.0,1.5972609]
[1723968640037,1.10443476,59620.0,59619.0,1.61814442]
[1723968640288,1.10443476,59620.0,59619.0,0.11829102]
[1723968640762,1.10443476,59620.0,59619.0,1.61829102]
[1723968641742,1.10443476,59620.0,59619.0,1.5974075]
[1723968641982,1.10443476,59620.0,59619.0,1.61829099]
[1723968643677,1.10443476,59620.0,59619.0,1.61802899]
[1723968643822,1.10443476,59620.0,59619.0,1.5971455]
[1723968649149,1.10443476,59620.0,59619.0,1.61802905]
[1723968649662,0.69806022,59620.0,59619.0,1.61802905]
[1723968649889,0.69806022,59620.0,59619.0,1.67932905]
[1723968650372,0.69806022,59620.0,59619.0,1.67932868]
[1723968651046,0.687875,59620.0,59619.0,1.67932868]
[1723968653629,0.07530985,59627.0,59619.0,1.67932868]
[1723968653630,0.07530553,59632.0,59620.0,0.0779]
[1723968653862,0.00825,59644.0,59643.0,0.117364]
[1723968654075,0.00825,59644.0,59643.0,0.76990518]
[1723968654266,0.00825,59644.0,59643.0,1.59878318]
[1723968654587,0.00825,59644.0,59643.0,1.59877382]
[1723968654722,0.00825,59644.0,59643.0,1.5779]
[1723968655310,0.00925,59644.0,59643.0,1.5789]
[1723968655520,0.00825,59644.0,59643.0,1.5779]
[1723968655740,0.00825,59644.0,59643.0,1.5919]
[1723968655942,0.00825,59644.0,59643.0,1.6059]
[1723968656167,0.00825,59644.0,59643.0,1.5779]
[1723968656948,0.00825,59644.0,59643.0,1.695264]
[1723968657562,0.00825,59644.0,59643.0,1.722264]
[1723968657767,0.00825,59644.0,59643.0,1.72648024]
[1723968657962,0.00825,59644.0,59643.0,1.93420924]
[1723968658352,0.00825,59644.0,59643.0,2.19693824]
[1723968658548,0.00825,59644.0,59643.0,1.96220924]
[1723968659023,0.00825,59644.0,59643.0,2.192722]
[1723968659481,0.00825,59644.0,59643.0,2.427451]
[1723968659674,0.00825,59644.0,59643.0,2.215722]
[1723968659873,0.00825,59644.0,59643.0,2.451451]
[1723968660074,0.00825,59644.0,59643.0,2.53752321]
[1723968660852,0.00825,59644.0,59643.0,2.52552321]
[1723968661197,0.00825,59644.0,59643.0,2.51152321]
[1723968661533,0.00825,59644.0,59643.0,2.52552321]
[1723968661737,0.00825,59644.0,59643.0,2.53952321]
[1723968661943,0.00825,59644.0,59643.0,2.52552321]
[1723968662145,0.00825,59644.0,59643.0,2.52252321]
[1723968662372,0.00825,59644.0,59643.0,2.501651]
[1723968662955,0.00825,59644.0,59643.0,2.515651]
[1723968670404,0.00825,59644.0,59643.0,2.280922]
[1723968671158,0.00825,59644.0,59643.0,2.515651]
[1723968673856,0.00825,59644.0,59643.0,2.28066]
[1723968674270,0.00825,59644.0,59643.0,2.515389]
[1723968674686,0.00825,59644.0,59643.0,2.28066]
[1723968675448,0.00825,59644.0,59643.0,2.21546]
[1723968675658,0.00825,59644.0,59643.0,2.20146]
[1723968676059,0.00825,59644.0,59643.0,2.21546]
[1723968676264,0.00825,59644.0,59643.0,2.20146]
[1723968677185,0.00825,59644.0,59643.0,2.21546]
[1723968678171,0.00825,59644.0,59643.0,2.00160279]
[1723968682204,0.00825,59644.0,59643.0,2.0366197]
[1723968683253,0.00825,59644.0,59643.0,2.00160282]
[1723968683404,0.00825,59644.0,59643.0,2.0366197]
[1723968684833,0.00825,59644.0,59643.0,2.03661978]
[1723968686531,0.00825,59644.0,59643.0,2.09250856]
[1723968686921,0.00825,59644.0,59643.0,2.32723756]
[1723968687364,0.00825,59644.0,59643.0,2.33647571]
[1723968687555,0.00825,59644.0,59643.0,2.39078559]
[1723968687771,0.00825,59644.0,59643.0,2.39078557]
[1723968689188,0.00825,59644.0,59643.0,2.41532218]
[1723968689785,0.00825,59644.0,59643.0,2.41532217]
[1723968691777,0.00825,59644.0,59643.0,2.35943339]
[1723968691909,0.00825,59644.0,59643.0,2.24923476]
[1723968692143,0.00825,59644.0,59643.0,2.42423326]
[1723968692355,0.00825,59644.0,59643.0,2.42123326]
[1723968692555,0.00825,59644.0,59643.0,2.71475032]
[1723968694150,0.00825,59644.0,59643.0,2.54576308]
[1723968694356,0.00825,59644.0,59643.0,2.65595912]
[1723968695218,0.00825,59644.0,59643.0,4.09691366]
[1723968695484,0.00825,59644.0,59643.0,4.10191366]
[1723968696644,0.00825,59644.0,59643.0,3.96718143]
[1723968696851,0.00825,59644.0,59643.0,4.10191361]
[1723968697541,0.00825,59644.0,59643.0,4.09791361]
[1723968697750,0.00825,59644.0,59643.0,4.09791365]
[1723968698581,0.00825,59644.0,59643.0,4.09991365]
[1723968699001,0.00825,59644.0,59643.0,4.10191365]
[1723968699207,0.00825,59644.0,59643.0,4.48985984]
[1723968699427,0.00825,59644.0,59643.0,4.65500928]
[1723968699634,0.00825,59644.0,59643.0,5.43556699]
[1723968699878,0.00825,59651.0,59650.0,0.967357]
[1723968700078,0.00825,59651.0,59650.0,1.56509438]
[1723968700187,0.00825,59651.0,59650.0,1.50631694]
[1723968700408,0.00825,59651.0,59650.0,3.10689366]
[1723968700821,0.00825,59651.0,59650.0,2.88890566]
[1723968701436,0.00825,59651.0,59650.0,2.96433233]
[1723968701637,0.00825,59651.0,59650.0,2.88890566]
[1723968701837,0.00825,59651.0,59650.0,2.90290566]
[1723968703065,0.00825,59651.0,59650.0,2.91690566]
[1723968703287,0.00825,59651.0,59650.0,2.89237219]
[1723968703582,0.00825,59651.0,59650.0,2.95547219]
[1723968703782,0.00825,59651.0,59650.0,3.08453671]
[1723968703989,0.00825,59651.0,59650.0,2.98395999]
[1723968704359,0.00825,59651.0,59650.0,2.95942646]
[1723968704828,0.00825,59651.0,59650.0,2.9459723]
[1723968705069,0.00825,59651.0,59650.0,2.95520882]
[1723968706249,0.00825,59651.0,59650.0,2.94120882]
[1723968706481,0.00825,59651.0,59650.0,3.11372745]
[1723968706708,0.00825,59651.0,59650.0,3.12772745]
[1723968707180,0.00825,59651.0,59650.0,4.38312745]
[1723968707472,0.00825,59651.0,59650.0,4.39712745]
[1723968707870,0.00825,59651.0,59650.0,4.52224542]
[1723968708426,0.00825,59651.0,59650.0,4.50824542]
[1723968708633,0.00825,59651.0,59650.0,4.52224542]
[1723968709031,0.00825,59651.0,59650.0,4.43258823]
[1723968709225,0.00825,59651.0,59650.0,4.52223662]
[1723968709722,0.00825,59651.0,59650.0,4.42165185]
[1723968710417,0.00825,59651.0,59650.0,4.52219067]
[1723968710625,0.00825,59651.0,59650.0,4.52119067]
[1723968710759,0.00825,59651.0,59650.0,3.58626024]
[1723968710962,0.00825,59651.0,59650.0,3.20506998]
[1723968711194,0.00825,59651.0,59650.0,2.85327898]
[1723968711365,0.07465,59651.0,59650.0,2.81826826]
[1723968711570,0.191999,59651.0,59650.0,2.81826826]
[1723968711969,0.502097,59651.0,59650.0,2.81826826]
[1723968712398,0.736795,59651.0,59650.0,2.81826826]
[1723968713150,0.736795,59651.0,59650.0,1.52086826]
[1723968713363,0.736795,59651.0,59650.0,1.53486826]
[1723968713567,0.736795,59651.0,59650.0,1.54886826]
[1723968713676,0.736795,59651.0,59650.0,1.54887222]
[1723968714443,0.736795,59651.0,59650.0,1.54977862]
[1723968715295,0.736795,59651.0,59650.0,1.5289064]
[1723968717223,0.736795,59651.0,59650.0,1.54977861]
[1723968717638,0.736795,59651.0,59650.0,1.5289064]
[1723968719234,0.502097,59651.0,59650.0,1.5289064]
[1723968719674,0.267399,59651.0,59650.0,1.54977856]
[1723968719874,0.15005,59651.0,59650.0,1.54977856]
[1723968720051,0.15005,59651.0,59650.0,1.57277856]
[1723968721333,0.15005,59651.0,59650.0,1.5727784]
[1723968721955,0.07465,59651.0,59650.0,1.5727784]
[1723968722162,0.07465,59651.0,59650.0,1.6901294]
[1723968722315,0.07465,59651.0,59650.0,1.5727784]
[1723968724937,0.00825,59651.0,59650.0,1.5727784]
[1723968725546,0.00825,59651.0,59650.0,1.7446574]
[1723968725759,0.00825,59651.0,59650.0,1.6481784]
[1723968726646,0.00825,59651.0,59650.0,1.7655294]
[1723968726851,0.00825,59651.0,59650.0,1.6901294]
[1723968730057,0.00825,59651.0,59650.0,1.6692574]
[1723968730269,0.00825,59651.0,59650.0,1.6901294]
[1723968731204,0.00825,59651.0,59650.0,1.6692574]
[1723968731420,0.00825,59651.0,59650.0,1.6901294]
[1723968731830,0.00825,59651.0,59650.0,1.5727784]
[1723968732033,0.08445,59651.0,59650.0,1.5727784]
[1723968733489,0.262799,59651.0,59650.0,1.5727784]
[1723968733900,0.262799,59651.0,59650.0,1.5725164]
[1723968734525,0.262799,59651.0,59650.0,1.57251652]
[1723968736513,0.732195,59651.0,59650.0,1.54951652]
[1723968736998,0.74011956,59651.0,59650.0,1.5286444]
[1723968737617,0.74011956,59651.0,59650.0,1.54951712]
[1723968737822,0.50542156,59651.0,59650.0,1.54951712]
[1723968738782,0.50542156,59651.0,59650.0,1.5286444]
[1723968738986,0.50542156,59651.0,59650.0,1.54951712]
[1723968741134,0.50542156,59651.0,59650.0,1.5286444]
[1723968741286,0.50542156,59651.0,59650.0,1.54951719]
[1723968741492,0.50542156,59651.0,59650.0,1.5286444]
[1723968741913,0.50542156,59651.0,59650.0,1.54951719]
[1723968742564,0.50542156,59651.0,59650.0,1.5286444]
[1723968742717,0.74011956,59651.0,59650.0,1.54951719]
[1723968743878,0.74011956,59651.0,59650.0,1.54951731]
[1723968744801,0.74011956,59651.0,59650.0,1.5286444]
[1723968745130,0.74011956,59651.0,59650.0,1.54951723]
[1723968745924,0.74011956,59651.0,59650.0,1.54951731]
[1723968748565,0.74011956,59651.0,59650.0,1.54951737]
[1723968749557,0.74011956,59651.0,59650.0,1.5286444]
[1723968749723,0.74011956,59651.0,59650.0,1.54951737]
[1723968750865,1.2463721,59651.0,59650.0,1.5286444]
[1723968751713,1.2463721,59651.0,59650.0,1.5146444]
[1723968752437,1.2463721,59651.0,59650.0,1.5006444]
[1723968752984,1.2463721,59651.0,59650.0,1.5106444]
[1723968753176,1.2463721,59651.0,59650.0,1.5196444]
[1723968753670,1.2463721,59651.0,59650.0,1.5106444]
[1723968753894,1.2463721,59651.0,59650.0,0.0109064]
[1723968754066,1.2463721,59651.0,59650.0,0.0169064]
[1723968754294,1.2463721,59651.0,59650.0,1.5169064]
[1723968764038,1.2463721,59651.0,59650.0,1.5166444]
[1723968766676,1.2463721,59651.0,59650.0,0.0166444]
[1723968767238,1.2463721,59651.0,59650.0,1.5166444]
[1723968774116,0.9354741,59651.0,59650.0,1.5166444]
[1723968775920,0.000825,59670.0,59660.0,0.0618]
[1723968776183,0.000825,59670.0,59650.0,1.71119894]
[1723968776184,0.000825,59670.0,59663.0,0.414776]
[1723968776396,0.000825,59670.0,59663.0,0.60720401]
[1723968776648,0.000825,59670.0,59663.0,2.60874048]
[1723968776871,0.000825,59670.0,59663.0,2.70527773]
[1723968777104,0.000825,59670.0,59663.0,2.75754163]
[1723968777313,0.000825,59670.0,59663.0,2.69076991]
[1723968777536,0.000825,59670.0,59663.0,2.61963254]
[1723968777757,0.01025,59664.0,59663.0,2.64972983]
[1723968777970,0.000825,59670.0,59669.0,0.883094]
[1723968778193,0.000825,59670.0,59669.0,0.671467]
[1723968778408,0.000825,59670.0,59669.0,0.69233037]
[1723968778630,0.000825,59670.0,59669.0,2.19233037]
[1723968778844,0.000825,59670.0,59669.0,2.19233074]
[1723968779031,0.00056446,59670.0,59669.0,2.19233074]
[1723968779537,0.00056446,59670.0,59669.0,2.1965469]
[1723968780298,0.00056446,59670.0,59669.0,2.4311739]
[1723968780467,0.00056446,59670.0,59669.0,2.4479349]
[1723968780666,0.00056446,59670.0,59669.0,2.44471874]
[1723968781076,0.00056446,59670.0,59669.0,2.77990074]
[1723968781500,0.00056446,59670.0,59669.0,2.759037]
[1723968783306,0.00052446,59670.0,59669.0,2.759037]
[1723968784260,0.00052446,59670.0,59669.0,2.697137]
[1723968786841,0.00052446,59670.0,59669.0,2.6980434]
[1723968790231,0.00052446,59670.0,59669.0,1.5019064]
[1723968790232,0.07842446,59670.0,59669.0,1.5019064]
[1723968791179,0.31121246,59670.0,59669.0,1.5019064]
[1723968791389,0.14362446,59670.0,59669.0,1.5019064]
[1723968791720,0.31121246,59670.0,59669.0,1.5019064]
[1723968798038,0.14362446,59670.0,59669.0,1.5019064]
[1723968798433,0.31121246,59670.0,59669.0,1.5019064]
[1723968798833,0.64638846,59670.0,59669.0,1.5019064]
[1723968811781,0.98156446,59670.0,59669.0,1.5019064]
[1723968813950,1.08877934,59670.0,59669.0,1.5019064]
[1723968820394,1.08877934,59670.0,59669.0,1.52277402]
[1723968828769,1.08877934,59670.0,59669.0,1.5019064]
[1723968828967,1.08877934,59670.0,59669.0,1.52277401]
[1723968832014,0.23331246,59670.0,59669.0,1.52277401]
[1723968835405,0.06572446,59670.0,59669.0,1.52277401]
[1723968835606,0.23331246,59670.0,59669.0,1.52277401]
[1723968840183,0.23331246,59670.0,59669.0,1.5019064]
[1723968840327,0.56848846,59670.0,59669.0,1.52277401]
[1723968841242,0.23231246,59670.0,59669.0,1.52277401]
[1723968842347,0.56748846,59670.0,59669.0,1.52277401]
[1723968846071,0.56748846,59670.0,59669.0,1.5019064]
[1723968846275,0.56748846,59670.0,59669.0,1.52277401]
[1723968849804,0.56748846,59670.0,59669.0,1.5019064]
[1723968850063,0.56748846,59670.0,59669.0,1.52277401]
[1723968851485,0.56748846,59670.0,59669.0,1.5227736]
[1723968851686,0.56748846,59670.0,59669.0,1.5019064]
[1723968851885,0.56748846,59670.0,59669.0,1.52277356]
[1723968853890,0.56748846,59670.0,59669.0,0.02277356]
[1723968854042,0.56748846,59670.0,59669.0,0.0019064]
[1723968854244,0.56748846,59670.0,59669.0,0.02277356]
[1723968854568,0.56748846,59670.0,59669.0,1.52277356]
[1723968855343,0.67470334,59670.0,59669.0,1.52277356]
[1723968856818,0.75080334,59670.0,59669.0,1.52277356]
[1723968857029,0.75080334,59670.0,59669.0,1.5019064]
[1723968857202,0.75080334,59670.0,59669.0,1.52277361]
[1723968857407,1.08597934,59670.0,59669.0,1.52277361]
[1723968858945,1.08597934,59670.0,59669.0,1.5019064]
[1723968859116,1.08597934,59670.0,59669.0,1.52277361]
[1723968863349,1.08597934,59670.0,59669.0,1.5019064]
[1723968863553,1.08597934,59670.0,59669.0,1.52277361]
[1723968864833,1.08597934,59670.0,59669.0,1.5019064]
[1723968865071,1.08597934,59670.0,59669.0,1.52277361]
[1723968869693,1.08597934,59670.0,59669.0,1.52277427]
[1723968869898,1.08597934,59670.0,59669.0,1.5019064]
[1723968888748,0.94567934,59670.0,59669.0,1.5019064]
[1723968896505,0.94567934,59670.0,59669.0,1.52277442]
[1723968899654,1.09237934,59670.0,59669.0,1.52277442]
[1723968900578,1.09237934,59670.0,59669.0,1.5019064]
[1723968900770,1.09237934,59670.0,59669.0,1.5227745]
[1723968900991,1.76273134,59670.0,59669.0,0.0019064]
[1723968901186,1.86273134,59670.0,59669.0,0.0019064]
[1723968902857,1.96324672,59670.0,59669.0,0.0019064]
[1723968903198,1.86273134,59670.0,59669.0,0.0019064]
[1723968917139,2.00428808,59670.0,59669.0,0.0019064]
[1723968917837,1.86273134,59670.0,59669.0,0.0019064]
[1723968945293,1.96315442,59670.0,59669.0,0.0019064]
[1723968946020,1.96322688,59670.0,59669.0,0.0019064]
[1723968947014,1.98835077,59670.0,59669.0,0.0019064]
[1723968947241,1.86273134,59670.0,59669.0,0.0019064]
[1723968948266,1.98835077,59670.0,59669.0,0.0019064]
[1723968951731,1.98844603,59670.0,59669.0,0.0019064]
[1723968952514,2.07233034,59670.0,59669.0,0.0019064]
[1723968953791,1.98844603,59670.0,59669.0,0.0019064]
[1723968954608,1.98844603,59670.0,59669.0,0.00164469]
[1723968955681,1.98844332,59670.0,59669.0,0.00164469]
[1723968960422,1.98849814,59670.0,59669.0,0.00164469]
[1723968970876,1.84179814,59670.0,59669.0,0.00164469]
[1723968973150,1.84180652,59670.0,59669.0,0.00164469]
[1723968974566,1.84180652,59670.0,59669.0,0.00138298]
[1723968976027,1.84179879,59670.0,59669.0,0.00138298]
[1723968977827,1.84179773,59670.0,59669.0,0.00138298]
[1723968980880,1.90779773,59670.0,59669.0,0.00138298]
[1723968982624,1.9077941,59670.0,59669.0,0.00138298]
[1723968984572,1.9077941,59670.0,59669.0,0.00112127]
[1723968984573,1.78203134,59670.0,59669.0,0.00112127]
[1723968986262,1.86383134,59670.0,59669.0,0.00112127]
[1723968993529,1.98956915,59670.0,59669.0,0.00112127]
[1723968993986,1.86383134,59670.0,59669.0,0.00112127]
[1723969007440,1.86383134,59670.0,59669.0,0.0009972]
[1723969015774,1.79783134,59670.0,59669.0,0.0009972]
[1723969015968,1.9235503,59670.0,59669.0,0.0009972]
[1723969016220,1.79783134,59670.0,59669.0,0.0009972]
[1723969017754,1.71603134,59670.0,59669.0,0.0009972]
[1723969031477,1.84178324,59670.0,59669.0,0.0009972]
[1723969031715,1.71603134,59670.0,59669.0,0.0009972]
[1723969033141,1.84178299,59670.0,59669.0,0.0009972]
[1723969041273,1.79773134,59670.0,59669.0,0.0009972]
[1723969041496,1.85863134,59670.0,59669.0,0.0009972]
[1723969044530,1.85863134,59670.0,59669.0,0.0007352]
[1723969044735,2.03212045,59670.0,59669.0,0.0007352]
[1723969044936,1.85956591,59670.0,59669.0,0.0007352]
[1723969045981,1.85956591,59670.0,59669.0,0.0027352]
[1723969046757,1.85956591,59670.0,59669.0,0.0007352]
[1723969047526,1.85956591,59670.0,59669.0,0.0017352]
[1723969048491,1.86356591,59670.0,59669.0,0.0017352]
[1723969048700,1.86056591,59670.0,59669.0,0.0017352]
[1723969048907,1.85956591,59670.0,59669.0,0.0017352]
[1723969050297,2.03112045,59670.0,59669.0,0.0017352]
[1723969050895,1.85956591,59670.0,59669.0,0.0017352]
[1723969055138,1.86356591,59670.0,59669.0,0.0017352]
[1723969057753,1.85956591,59670.0,59669.0,0.0017352]
[1723969065699,1.86356591,59670.0,59669.0,0.0017352]
[1723969070011,2.19574191,59670.0,59669.0,2e-07]
[1723969070146,1.309313,59655.0,59654.0,0.51177509]
[1723969070351,1.51863488,59655.0,59654.0,0.51177509]
[1723969070758,1.17349,59651.0,59648.0,1.5]
[1723969070947,1.38337393,59651.0,59648.0,1.5]
[1723969072012,1.38337393,59651.0,59650.0,0.0036444]
[1723969075297,1.39111577,59651.0,59650.0,0.0036444]
[1723969078070,2.01593492,59651.0,59650.0,0.0036444]
[1723969078273,2.04593492,59651.0,59650.0,0.0036444]
[1723969078499,2.17245269,59651.0,59650.0,0.0036444]
[1723969078721,2.04593492,59651.0,59650.0,0.0036444]
[1723969079190,2.04693492,59651.0,59650.0,0.0036444]
[1723969079392,2.17130486,59651.0,59650.0,0.0036444]
[1723969079594,2.17730486,59651.0,59650.0,0.0036444]
[1723969079705,2.17630486,59651.0,59650.0,0.0036444]
[1723969079940,2.05093492,59651.0,59650.0,0.0036444]
[1723969080319,2.17730486,59651.0,59650.0,0.0036444]
[1723969080442,2.17730486,59651.0,59650.0,0.0006444]
[1723969080651,2.17930486,59651.0,59650.0,0.0006444]
[1723969080855,2.17830486,59651.0,59650.0,0.0006444]
[1723969081467,2.15319684,59651.0,59650.0,0.0006444]
[1723969082161,1.90023334,59651.0,59650.0,0.0006444]
[1723969088736,1.76339877,59651.0,59650.0,0.0006444]
[1723969090508,1.91149877,59651.0,59650.0,0.0006444]
[1723969095317,1.91249877,59651.0,59650.0,0.0006444]
[1723969095532,1.91149877,59651.0,59650.0,0.0006444]
[1723969096102,1.91449877,59651.0,59650.0,0.0006444]
[1723969096700,1.91249877,59651.0,59650.0,0.0006444]
[1723969097568,1.91449877,59651.0,59650.0,0.0006444]
[1723969097897,1.91149877,59651.0,59650.0,0.0006444]
[1723969098548,1.84639877,59651.0,59650.0,0.0006444]
[1723969098698,1.76339877,59651.0,59650.0,0.0006444]